bitfinex/quotes_SOLUSD_20251124
["timestamp","ask_amount","ask_price","bid_price","bid_amount"]
[1763985223278,0.71840749,130.01,129.98,9.07973186]
[1763985223615,0.00840749,130.01,130.0,4.97973186]
[1763985223970,0.00840749,130.01,130.0,5.67973186]
[1763985224468,0.00840749,130.01,130.0,8.76317761]
[1763985225198,0.00840749,130.01,130.0,12.16317761]
[1763985226399,0.00840749,130.01,130.0,11.46317761]
[1763985226803,0.00840749,130.01,130.0,12.12317761]
[1763985227789,0.00840749,130.01,130.0,11.46317761]
[1763985227995,0.16944799,130.01,130.0,11.46317761]
[1763985228175,0.1610405,130.01,130.0,11.46317761]
[1763985228788,0.1610405,130.01,130.0,6.48344575]
[1763985228990,0.8210405,130.01,130.0,3.4]
[1763985229189,0.1610405,130.01,130.0,3.4]
[1763985230191,0.8210405,130.01,130.0,3.4]
[1763985231294,0.8210405,130.01,129.99,33.9]
[1763985231295,5.80077236,130.01,129.99,33.9]
[1763985231789,0.66,130.0,129.99,33.9]
[1763985234699,0.66,130.0,129.98,3.4]
[1763985236623,3.39360147,130.0,129.98,3.4]
[1763985237078,0.69,129.99,129.98,3.4]
[1763985237910,3.42360147,129.99,129.95,21.00725961]
[1763985238204,3.42360147,129.99,129.96,3.4]
[1763985238411,0.69,129.98,129.96,3.4]
[1763985238599,0.69,129.98,129.94,0.2]
[1763985238600,2.73360147,129.97,129.94,0.2]
[1763985238802,2.73360147,129.97,129.94,3.6]
[1763985238999,0.69,129.96,129.94,3.6]
[1763985240903,0.69,129.97,129.94,3.6]
[1763985241212,0.69,129.96,129.94,3.6]
[1763985241583,18.81096,129.99,129.95,3.40360147]
[1763985241789,0.69,129.98,129.95,3.40360147]
[1763985243216,0.69,129.98,129.95,2.73360147]
[1763985243392,3.42360147,129.98,129.94,3.6]
[1763985243590,3.42360147,129.98,129.94,6.33360147]
[1763985243794,0.69,129.97,129.94,6.33360147]
[1763985243998,3.42360147,129.97,129.94,3.6]
[1763985244383,0.69,129.96,129.94,3.6]
[1763985245491,3.42360147,129.96,129.94,3.6]
[1763985247288,0.69,129.96,129.94,3.6]
[1763985247493,0.69,129.95,129.94,3.6]
[1763985247694,3.42360147,129.95,129.94,0.2]
[1763985247911,3.56781346,129.95,129.94,0.2]
[1763985250626,0.83421199,129.95,129.94,0.2]
[1763985251500,3.56781346,129.95,129.94,0.2]
[1763985251902,0.83421199,129.95,129.94,0.2]
[1763985252122,3.56781346,129.95,129.94,0.2]
[1763985253903,0.83421199,129.95,129.94,0.2]
[1763985254105,3.56781346,129.95,129.94,0.2]
[1763985259435,3.8521366,129.95,129.94,0.2]
[1763985261814,21.9730966,129.95,129.94,0.2]
[1763985263209,31.90408586,129.95,129.94,0.2]
[1763985264023,33.90408585,129.95,129.94,0.2]
[1763985264427,28.3362724,129.93,129.92,0.2]
[1763985264713,34.46987387,129.93,129.92,0.2]
[1763985264939,35.16987387,129.93,129.92,0.2]
[1763985265512,39.19630019,129.93,129.92,0.2]
[1763985267532,41.19630018,129.93,129.92,0.2]
[1763985267921,41.3358646,129.93,129.92,0.2]
[1763985271025,39.33586461,129.93,129.92,0.2]
[1763985271630,41.3358646,129.93,129.92,0.2]
[1763985271829,39.33586461,129.93,129.92,0.2]
[1763985272358,36.60226314,129.93,129.92,0.2]
[1763985272547,39.33586461,129.93,129.92,0.2]
[1763985277867,41.3358646,129.93,129.92,0.2]
[1763985282655,39.33586461,129.93,129.92,0.2]
[1763985282857,41.3358646,129.93,129.92,0.2]
[1763985283482,28.3362724,129.88,129.87,0.2]
[1763985283647,35.16987387,129.88,129.87,0.2]
[1763985284647,34.46987387,129.88,129.87,0.2]
[1763985285850,12.58984797,129.92,129.87,0.91]
[1763985285851,13.28984797,129.92,129.87,0.91]
[1763985286159,20.85456147,129.9,129.87,0.91]
[1763985286361,18.12096,129.89,129.88,0.71]
[1763985287980,18.27422,129.89,129.88,0.71]
[1763985288151,21.00782147,129.89,129.88,0.71]
[1763985290788,21.00782147,129.89,129.87,0.2]
[1763985290789,21.00782147,129.89,129.87,0.85]
[1763985290953,2.73360147,129.88,129.87,0.85]
[1763985291861,3.01792461,129.88,129.87,0.2]
[1763985292378,21.13888461,129.88,129.87,0.2]
[1763985292763,3.72792461,129.88,129.87,0.2]
[1763985293174,3.01792461,129.88,129.87,0.2]
[1763985294073,3.72792461,129.88,129.87,0.2]
[1763985296653,3.01792461,129.88,129.87,0.2]
[1763985296879,6.41792461,129.88,129.87,0.2]
[1763985297257,7.12792461,129.88,129.87,0.2]
[1763985297851,6.41792461,129.88,129.87,0.2]
[1763985298591,7.96525057,129.88,129.87,0.2]
[1763985300264,18.60623983,129.88,129.87,0.2]
[1763985300471,20.60623982,129.88,129.87,0.2]
[1763985301058,18.60623983,129.88,129.87,0.2]
[1763985301266,26.08621057,129.88,129.87,0.2]
[1763985305180,25.80188743,129.88,129.87,0.91]
[1763985305481,7.68092743,129.88,129.87,0.91]
[1763985306893,3.4,129.88,129.87,0.91]
[1763985307063,7.68092743,129.88,129.87,0.91]
[1763985307976,7.82043898,129.88,129.87,0.91]
[1763985308684,0.13951155,129.88,129.87,0.91]
[1763985308886,4.42043898,129.88,129.87,0.91]
[1763985309272,0.13951155,129.88,129.87,0.91]
[1763985309469,0.15261416,129.89,129.87,5.19092743]
[1763985309667,0.15261416,129.89,129.88,4.99092743]
[1763985309869,0.15261416,129.89,129.88,0.71]
[1763985311060,4.43354159,129.89,129.88,0.71]
[1763985311291,5.14354159,129.89,129.87,0.2]
[1763985311484,22.40188743,129.88,129.87,0.2]
[1763985311790,22.40188743,129.88,129.87,0.91]
[1763985314166,4.28092743,129.88,129.87,0.91]
[1763985316313,0.15261416,129.89,129.87,0.91]
[1763985316595,0.15261416,129.89,129.88,0.71]
[1763985320480,4.43354159,129.89,129.88,0.71]
[1763985321582,0.15261416,129.89,129.88,0.71]
[1763985325928,0.15261416,129.89,129.87,0.2]
[1763985326074,4.43354159,129.89,129.87,0.91]
[1763985326275,18.12096,129.88,129.87,0.91]
[1763985326487,18.12096,129.88,129.87,0.2]
[1763985326905,18.12096,129.88,129.87,0.91]
[1763985327207,0.15261416,129.89,129.87,0.91]
[1763985327409,18.27357416,129.89,129.88,0.71]
[1763985327743,22.55450159,129.89,129.88,0.71]
[1763985327871,22.55450159,129.89,129.87,0.2]
[1763985328066,22.56026426,129.89,129.88,0.71]
[1763985328572,22.56026426,129.89,129.87,0.91]
[1763985329673,22.56026426,129.89,129.88,0.71]
[1763985330082,18.27933683,129.89,129.88,0.71]
[1763985330897,0.15837683,129.89,129.88,0.71]
[1763985338309,4.43930426,129.89,129.88,0.71]
[1763985338602,4.43930426,129.89,129.87,0.2]
[1763985338802,4.28092743,129.88,129.87,0.91]
[1763985339011,4.28092743,129.88,129.87,0.2]
[1763985339211,4.94092743,129.88,129.87,0.2]
[1763985342918,0.15837683,129.89,129.87,0.91]
[1763985342919,18.27933683,129.89,129.87,0.91]
[1763985343113,4.28092743,129.88,129.87,0.91]
[1763985343829,18.27933683,129.89,129.87,0.91]
[1763985344132,18.27933683,129.89,129.88,0.71]
[1763985346034,22.56026426,129.89,129.88,0.71]
[1763985346529,22.56026426,129.89,129.87,0.91]
[1763985346736,4.28092743,129.88,129.87,0.91]
[1763985346918,4.28092743,129.88,129.87,0.2]
[1763985348134,4.44460306,129.88,129.87,0.2]
[1763985349819,4.44460306,129.88,129.87,0.89]
[1763985350151,4.44460306,129.88,129.87,0.2]
[1763985353014,4.44460306,129.88,129.87,0.87]
[1763985353942,4.44460306,129.88,129.87,0.2]
[1763985356615,5.16460306,129.88,129.87,0.2]
[1763985357545,4.44460306,129.88,129.87,0.2]
[1763985360656,2.90333105,129.88,129.87,0.2]
[1763985362231,2.90333105,129.88,129.87,0.87]
[1763985362766,2.90333105,129.88,129.87,0.2]
[1763985363925,0.16367563,129.88,129.87,0.87]
[1763985364130,2.90333105,129.88,129.87,0.87]
[1763985364334,21.02429105,129.88,129.87,0.2]
[1763985364822,21.02429105,129.88,129.87,0.87]
[1763985365862,2.90333105,129.88,129.87,0.2]
[1763985366448,2.90333105,129.88,129.87,0.87]
[1763985368066,3.06798028,129.88,129.87,0.87]
[1763985368230,2.90430465,129.88,129.87,0.87]
[1763985368726,2.90430465,129.88,129.87,0.2]
[1763985368727,3.62430465,129.88,129.87,0.2]
[1763985369558,2.90430465,129.88,129.87,0.2]
[1763985371032,21.02526465,129.88,129.87,0.2]
[1763985372041,2.90430465,129.88,129.87,0.2]
[1763985376160,3.62430465,129.88,129.87,0.2]
[1763985378746,2.90430465,129.88,129.87,0.2]
[1763985379235,2.90430465,129.88,129.87,0.87]
[1763985379436,2.90430465,129.88,129.87,0.2]
[1763985379736,2.90430465,129.88,129.87,0.87]
[1763985380855,2.90430465,129.88,129.87,0.2]
[1763985382252,3.62430465,129.88,129.87,0.2]
[1763985385468,2.90430465,129.88,129.87,0.2]
[1763985385643,3.58430465,129.88,129.87,0.2]
[1763985386571,0.16464923,129.88,129.87,0.2]
[1763985386866,0.16464923,129.88,129.87,0.86]
[1763985388040,0.30494545,129.88,129.87,0.86]
[1763985388262,0.14029622,129.88,129.87,0.86]
[1763985389165,0.14029622,129.88,129.87,0.2]
[1763985389469,2.87995164,129.88,129.87,0.86]
[1763985390154,21.68091164,129.88,129.87,0.2]
[1763985391052,21.00091164,129.88,129.87,0.2]
[1763985391775,21.68091164,129.88,129.87,0.2]
[1763985394170,21.00091164,129.88,129.87,0.2]
[1763985395371,2.87995164,129.88,129.87,0.2]
[1763985395771,21.00091164,129.88,129.87,0.2]
[1763985396073,21.00091164,129.88,129.87,0.86]
[1763985396677,0.14029622,129.88,129.87,0.86]
[1763985406886,0.14029622,129.88,129.87,3.94653883]
[1763985408176,0.15829785,129.88,129.87,3.94653883]
[1763985410224,0.1433845,129.9,129.88,0.66]
[1763985410225,16.89096,129.9,129.88,0.66]
[1763985410373,0.16661746,129.91,129.89,6.28181699]
[1763985410563,0.16661746,129.91,129.9,2.73965542]
[1763985410783,0.16661746,129.91,129.9,3.08534845]
[1763985412900,0.83661746,129.91,129.9,3.08534845]
[1763985413198,0.16661746,129.91,129.9,3.08534845]
[1763985413380,0.83661746,129.91,129.9,3.08534845]
[1763985413777,3.57627288,129.91,129.88,3.4]
[1763985413984,2.73965542,129.89,129.88,3.4]
[1763985414498,3.40965542,129.89,129.88,3.4]
[1763985415275,0.67,129.89,129.88,3.4]
[1763985420682,18.79096,129.89,129.88,3.4]
[1763985420877,18.79096,129.89,129.87,0.2]
[1763985421202,0.67,129.88,129.87,0.2]
[1763985421406,4.94866349,129.88,129.87,0.2]
[1763985421700,18.79096,129.88,129.87,0.2]
[1763985422100,0.67,129.88,129.87,0.2]
[1763985424615,4.94866349,129.88,129.87,0.2]
[1763985426288,23.06962349,129.88,129.87,0.2]
[1763985428008,23.23065234,129.88,129.87,0.2]
[1763985432111,23.51497548,129.88,129.87,0.2]
[1763985432306,33.44596474,129.88,129.87,0.2]
[1763985432499,29.16730125,129.88,129.87,0.2]
[1763985432817,33.44596474,129.88,129.87,0.2]
[1763985433196,40.63556678,129.88,129.87,0.2]
[1763985433747,43.72377368,129.88,129.87,0.2]
[1763985435720,40.63556678,129.88,129.87,0.2]
[1763985436104,5.10969234,129.88,129.87,0.2]
[1763985444120,0.16102885,129.88,129.87,0.2]
[1763985444622,18.28198885,129.88,129.87,0.2]
[1763985445235,0.16102885,129.88,129.87,4.47866349]
[1763985446721,0.16102885,129.88,129.87,12.55732698]
[1763985447699,0.16102885,129.88,129.87,22.77263938]
[1763985448106,0.15612725,129.88,129.87,22.77263938]
[1763985448716,0.15612725,129.88,129.87,30.47264708]
[1763985449607,0.15612725,129.88,129.87,22.77263938]
[1763985449909,0.15612725,129.88,129.87,23.54264015]
[1763985450423,0.15612725,129.88,129.87,31.24264785]
[1763985450619,0.15612725,129.88,129.87,23.54264015]
[1763985451318,0.15946507,129.89,129.88,33.74387275]
[1763985451518,0.15946507,129.89,129.88,41.42253624]
[1763985452025,0.15946507,129.89,129.88,49.12195108]
[1763985452510,0.15946507,129.89,129.88,42.19247772]
[1763985455205,0.16251004,129.9,129.89,43.59972008]
[1763985455404,0.16251004,129.9,129.89,47.87838357]
[1763985455841,0.16251004,129.9,129.89,50.96373202]
[1763985458715,0.16358329,129.91,129.89,158.01227771]
[1763985458919,0.16358329,129.91,129.9,8.55732698]
[1763985459311,0.16358329,129.91,129.9,44.92660721]
[1763985459699,0.16358329,129.91,129.9,40.64794372]
[1763985461126,0.16358329,129.91,129.9,50.86325612]
[1763985461513,0.16358329,129.91,129.9,40.64794372]
[1763985462637,0.16358329,129.91,129.9,7.36353604]
[1763985466422,0.16358329,129.91,129.9,21.85751193]
[1763985468021,0.31461886,129.91,129.9,21.85751193]
[1763985468214,0.15103557,129.91,129.9,21.85751193]
[1763985469422,0.15103557,129.91,129.9,17.57884844]
[1763985470949,0.15103557,129.91,129.9,21.85751193]
[1763985471148,0.15103557,129.91,129.9,13.30018495]
[1763985471326,0.15103557,129.91,129.9,17.57884844]
[1763985471521,0.15103557,129.91,129.9,20.97884844]
[1763985472631,0.15103557,129.91,129.9,10.76353604]
[1763985473133,0.15103557,129.91,129.9,6.48487255]
[1763985473333,0.15103557,129.91,129.9,10.76353604]
[1763985478251,0.15103557,129.91,129.9,32.95574133]
[1763985478744,0.15103557,129.91,129.9,28.67707784]
[1763985478943,0.15103557,129.91,129.9,20.97884844]
[1763985479474,0.15103557,129.91,129.9,10.76353604]
[1763985479632,0.84103557,129.91,129.9,3.4]
[1763985480241,5.11969906,129.91,129.9,3.4]
[1763985480555,5.11969906,129.91,129.87,6.68606256]
[1763985480750,4.96866349,129.9,129.87,3.6]
[1763985481126,0.69,129.89,129.87,3.6]
[1763985481638,0.69,129.89,129.85,9.59836255]
[1763985481639,22.39962349,129.88,129.85,0.2]
[1763985481869,22.39962349,129.86,129.85,0.2]
[1763985482338,23.08962349,129.86,129.85,0.2]
[1763985482539,3.42987581,129.86,129.85,0.2]
[1763985484169,0.69,129.87,129.85,2.93987581]
[1763985484346,18.12096,129.88,129.86,2.73987581]
[1763985484347,0.69,129.88,129.86,2.73987581]
[1763985485136,0.69,129.9,129.87,2.73987581]
[1763985485338,3.42987581,129.9,129.85,3.6]
[1763985485552,3.42987581,129.9,129.86,2.73987581]
[1763985485756,0.69,129.89,129.86,2.73987581]
[1763985487345,0.69,129.9,129.87,2.73987581]
[1763985487664,0.84103557,129.91,129.89,2.73987581]
[1763985487850,0.69,129.9,129.89,2.73987581]
[1763985488052,0.8309466,129.9,129.88,2.73987581]
[1763985489760,0.8309466,129.9,129.86,0.97432314]
[1763985489969,0.8309466,129.9,129.88,2.73987581]
[1763985490651,0.8309466,129.9,129.87,5.82593837]
[1763985491674,0.8309466,129.9,129.87,3.08606256]
[1763985492278,0.8309466,129.9,129.86,2.73987581]
[1763985492443,3.57082241,129.9,129.86,2.73987581]
[1763985492870,0.69,129.89,129.86,2.73987581]
[1763985493249,3.42987581,129.89,129.85,9.42641464]
[1763985493449,2.73987581,129.88,129.85,3.6]
[1763985493659,3.42987581,129.88,129.85,3.6]
[1763985493860,0.69,129.87,129.85,3.6]
[1763985494570,3.42987581,129.87,129.85,3.6]
[1763985494772,2.73987581,129.86,129.85,0.2]
[1763985494940,0.69,129.86,129.85,0.2]
[1763985496077,3.42987581,129.86,129.85,0.2]
[1763985497366,21.83515895,129.86,129.85,0.2]
[1763985497553,3.71419895,129.86,129.85,0.2]
[1763985497748,18.81096,129.86,129.85,0.2]
[1763985498369,3.42987581,129.86,129.85,0.2]
[1763985502767,0.69,129.86,129.85,0.2]
[1763985502957,3.42987581,129.86,129.85,0.2]
[1763985504673,0.7,129.86,129.85,0.2]
[1763985508071,0.84664092,129.86,129.85,0.2]
[1763985508265,3.58651673,129.86,129.85,0.2]
[1763985515909,0.14664092,129.86,129.85,0.2]
[1763985516271,0.14664092,129.86,129.85,0.85]
[1763985516499,0.14664092,129.86,129.85,0.2]
[1763985516720,0.14664092,129.86,129.85,3.58987581]
[1763985523499,0.14664092,129.86,129.85,0.85]
[1763985526001,0.14664092,129.86,129.85,3.58987581]
[1763985528117,0.86006417,129.86,129.85,0.2]
[1763985528430,3.59993998,129.86,129.85,0.2]
[1763985534720,21.72089998,129.86,129.85,0.2]
[1763985535096,26.91230223,129.86,129.85,0.2]
[1763985535512,21.72089998,129.86,129.85,0.2]
[1763985538127,24.17387164,129.86,129.85,0.2]
[1763985538422,26.91374745,129.86,129.85,0.2]
[1763985539303,21.72089998,129.86,129.85,0.2]
[1763985542032,3.59993998,129.86,129.85,0.2]
[1763985542209,21.72089998,129.86,129.85,0.2]
[1763985542407,2.87993998,129.86,129.85,0.2]
[1763985542623,4.42090925,129.86,129.85,0.2]
[1763985542999,0.14006417,129.86,129.85,0.2]
[1763985545935,5.12090925,129.86,129.85,0.2]
[1763985548123,0.86311802,129.86,129.85,0.2]
[1763985548720,0.16311802,129.86,129.85,0.2]
[1763985549910,0.86311802,129.86,129.85,0.2]
[1763985550226,18.98407802,129.86,129.85,0.2]
[1763985551852,18.28407802,129.86,129.85,0.2]
[1763985559651,18.98407802,129.86,129.85,0.2]
[1763985559950,23.2649231,129.86,129.85,0.2]
[1763985562022,5.1439631,129.86,129.85,0.2]
[1763985563565,0.16311802,129.86,129.85,0.2]
[1763985563763,18.28407802,129.86,129.85,0.2]
[1763985564235,0.16311802,129.86,129.85,0.2]
[1763985566153,0.88311802,129.86,129.85,0.2]
[1763985566522,0.16311802,129.86,129.85,0.2]
[1763985568151,0.14222077,129.86,129.85,0.2]
[1763985568334,0.14222077,129.86,129.85,0.92]
[1763985569749,0.14222077,129.86,129.85,0.2]
[1763985571142,0.14222077,129.86,129.85,0.92]
[1763985571346,0.14222077,129.86,129.85,0.2]
[1763985572067,0.14222077,129.86,129.85,5.20084508]
[1763985573352,0.14222077,129.86,129.85,0.92]
[1763985573570,5.14306585,129.86,129.85,0.2]
[1763985574143,0.86222077,129.86,129.85,0.2]
[1763985574833,5.14306585,129.86,129.85,0.2]
[1763985577728,23.26402585,129.86,129.85,0.2]
[1763985579132,18.98318077,129.86,129.85,0.2]
[1763985579470,18.26318077,129.86,129.85,0.2]
[1763985579965,18.26318077,129.86,129.85,5.20084508]
[1763985580141,18.26318077,129.86,129.85,0.92]
[1763985580483,18.98318077,129.86,129.85,0.2]
[1763985580664,23.26402585,129.86,129.85,0.2]
[1763985581028,22.54402585,129.86,129.85,0.2]
[1763985581936,18.26318077,129.86,129.85,0.2]
[1763985582167,22.54402585,129.86,129.85,0.2]
[1763985585586,23.26402585,129.86,129.85,0.2]
[1763985585771,22.54402585,129.86,129.85,0.2]
[1763985587047,23.24402585,129.86,129.85,0.2]
[1763985588170,23.25029147,129.86,129.85,0.2]
[1763985589272,18.26944639,129.86,129.85,0.2]
[1763985589476,0.14848639,129.86,129.85,0.87]
[1763985591584,0.14848639,129.86,129.85,0.2]
[1763985591772,5.12933147,129.86,129.85,0.2]
[1763985596967,22.55029147,129.86,129.85,0.2]
[1763985597164,23.24029147,129.86,129.85,0.2]
[1763985600360,23.24029147,129.86,129.84,0.2]
[1763985600361,10.2153124,129.85,129.84,0.2]
[1763985600561,22.86700256,129.85,129.84,0.2]
[1763985600793,28.06874363,129.85,129.84,0.2]
[1763985602572,33.21862497,129.85,129.84,0.2]
[1763985603285,33.21862497,129.85,129.83,0.2]
[1763985603484,23.00331257,129.84,129.83,0.2]
[1763985603982,12.03405537,129.84,129.83,0.2]
[1763985604285,23.00331257,129.84,129.83,0.2]
[1763985606385,9.78882769,129.83,129.81,0.2]
[1763985606589,9.78882769,129.83,129.79,0.2]
[1763985606590,18.12096,129.8,129.79,0.2]
[1763985606886,20.8632743,129.8,129.79,0.2]
[1763985607188,21.5532743,129.8,129.79,0.2]
[1763985607386,21.5532743,129.8,129.76,0.2]
[1763985607387,9.78882769,129.79,129.76,0.2]
[1763985607582,18.81096,129.79,129.76,0.2]
[1763985607959,2.7423143,129.78,129.76,0.89]
[1763985608162,0.16471272,129.77,129.76,0.89]
[1763985608399,2.90702702,129.77,129.76,0.2]
[1763985609280,3.59702702,129.77,129.76,0.2]
[1763985612196,16.78585471,129.77,129.76,0.2]
[1763985612362,17.21233942,129.77,129.76,0.2]
[1763985612566,21.71798702,129.77,129.76,0.2]
[1763985612770,25.11798702,129.77,129.76,0.2]
[1763985613189,35.33329942,129.77,129.76,0.2]
[1763985613574,10.2153124,129.76,129.75,0.2]
[1763985613789,13.6476267,129.76,129.74,0.2]
[1763985613971,3.4323143,129.75,129.74,0.2]
[1763985614387,2.7423143,129.75,129.74,0.2]
[1763985614587,3.4323143,129.75,129.74,0.2]
[1763985616598,0.69,129.75,129.74,0.2]
[1763985616899,3.4323143,129.75,129.74,0.2]
[1763985618186,6.8323143,129.75,129.74,0.2]
[1763985618879,24.9532743,129.75,129.74,0.2]
[1763985619081,35.1685867,129.75,129.74,0.2]
[1763985619304,17.0476267,129.75,129.74,0.2]
[1763985622701,10.2153124,129.73,129.72,0.2]
[1763985622994,23.9268839,129.73,129.72,0.2]
[1763985623185,24.6268839,129.73,129.72,0.2]
[1763985624483,18.12096,129.7,129.67,0.2]
[1763985624801,18.12096,129.69,129.68,0.68]
[1763985625980,24.2632743,129.71,129.68,0.68]
[1763985626691,20.8632743,129.71,129.68,0.68]
[1763985627191,18.12096,129.71,129.68,0.68]
[1763985627389,2.7423143,129.7,129.68,0.68]
[1763985628200,0.14018519,129.69,129.68,0.68]
[1763985629275,2.88249949,129.69,129.68,0.68]
[1763985629906,21.00345949,129.69,129.67,0.88]
[1763985630081,2.7423143,129.68,129.67,0.88]
[1763985630272,21.00345949,129.69,129.67,0.88]
[1763985630473,2.88249949,129.69,129.68,0.68]
[1763985630978,0.14018519,129.69,129.68,0.68]
[1763985632476,0.14018519,129.69,129.68,3.4223143]
[1763985633403,0.14018519,129.69,129.68,13.21114199]
[1763985634116,0.14018519,129.69,129.68,13.6376267]
[1763985634993,0.14018519,129.69,129.68,22.12004495]
[1763985635198,0.14310463,129.7,129.69,10.2153124]
[1763985635404,0.15384764,129.71,129.69,13.6376267]
[1763985635590,0.1480338,129.72,129.7,7.24879901]
[1763985635786,0.15188734,129.73,129.72,10.2153124]
[1763985636100,0.15188734,129.73,129.72,12.9576267]
[1763985636288,0.15188734,129.73,129.72,13.6376267]
[1763985636698,0.15188734,129.73,129.72,13.21114199]
[1763985639312,0.15188734,129.73,129.72,0.68]
[1763985639611,0.15188734,129.73,129.72,3.4223143]
[1763985639992,0.15188734,129.73,129.72,0.68]
[1763985643215,0.15188734,129.73,129.7,6.8223143]
[1763985643515,2.89420164,129.73,129.7,0.68]
[1763985644109,3.59420164,129.73,129.7,0.68]
[1763985644505,3.4423143,129.72,129.68,6.8223143]
[1763985645015,3.4423143,129.72,129.69,0.68]
[1763985647392,3.4423143,129.72,129.68,3.4]
[1763985647619,3.4123143,129.71,129.68,3.4]
[1763985647922,3.4123143,129.71,129.68,4.05]
[1763985648113,0.16626795,129.69,129.68,4.05]
[1763985648826,0.16626795,129.69,129.68,6.7923143]
[1763985649122,0.16626795,129.69,129.68,0.65]
[1763985649305,0.16626795,129.69,129.67,9.98882769]
[1763985649506,0.16626795,129.69,129.68,0.65]
[1763985650195,0.16626795,129.69,129.68,3.3923143]
[1763985650999,0.16626795,129.69,129.67,13.38114199]
[1763985651322,0.16626795,129.69,129.68,0.65]
[1763985651725,0.16626795,129.69,129.68,3.3923143]
[1763985651923,0.16626795,129.69,129.68,13.18114199]
[1763985652623,0.16626795,129.69,129.68,10.43882769]
[1763985652807,0.16626795,129.69,129.68,13.18114199]
[1763985653008,0.16626795,129.69,129.68,0.65]
[1763985654024,0.16626795,129.69,129.67,0.2]
[1763985654321,0.16626795,129.69,129.68,0.72]
[1763985655400,0.16626795,129.69,129.67,3.6623143]
[1763985657613,0.87626795,129.69,129.67,0.2]
[1763985658000,2.7423143,129.68,129.67,0.2]
[1763985658517,2.7423143,129.68,129.66,0.2]
[1763985658518,21.5732743,129.68,129.66,0.2]
[1763985658699,3.4523143,129.67,129.66,0.2]
[1763985660630,21.5732743,129.67,129.66,0.2]
[1763985661923,3.4523143,129.67,129.66,0.2]
[1763985664755,5.00488789,129.67,129.66,0.2]
[1763985665810,23.12584789,129.67,129.66,0.2]
[1763985666012,5.00488789,129.67,129.66,0.2]
[1763985667131,23.12584789,129.67,129.66,0.2]
[1763985667433,9.72626049,129.67,129.66,0.2]
[1763985667634,8.40488789,129.67,129.66,0.2]
[1763985667938,23.12584789,129.67,129.66,0.2]
[1763985668135,22.56987707,129.67,129.66,0.2]
[1763985668507,4.44891707,129.67,129.66,0.2]
[1763985670033,0.15402918,129.67,129.66,0.92]
[1763985670350,18.27498918,129.67,129.66,0.2]
[1763985670837,0.15402918,129.67,129.66,0.92]
[1763985671636,0.15402918,129.67,129.66,0.2]
[1763985672219,22.56987707,129.67,129.66,0.2]
[1763985673442,5.15891707,129.67,129.66,0.2]
[1763985675143,0.15402918,129.67,129.66,0.2]
[1763985675336,0.15402918,129.67,129.66,0.92]
[1763985675652,0.15402918,129.67,129.66,0.2]
[1763985675832,0.15402918,129.67,129.66,0.92]
[1763985676649,0.15402918,129.67,129.66,0.2]
[1763985677353,18.27498918,129.67,129.66,0.2]
[1763985677730,4.44891707,129.67,129.66,0.2]
[1763985680460,5.15891707,129.67,129.66,0.2]
[1763985681341,0.86402918,129.67,129.66,0.2]
[1763985681647,5.15891707,129.67,129.66,0.2]
[1763985682250,4.44891707,129.67,129.66,0.2]
[1763985683439,5.16891707,129.67,129.66,0.2]
[1763985683853,9.46380496,129.67,129.66,0.2]
[1763985684038,9.89028967,129.67,129.66,0.2]
[1763985684757,0.42648471,129.64,129.63,0.2]
[1763985685063,22.8423326,129.64,129.63,0.2]
[1763985685245,23.5623326,129.64,129.63,0.2]
[1763985685769,22.41584789,129.64,129.63,0.2]
[1763985685935,23.13584789,129.64,129.63,0.2]
[1763985687958,18.84096,129.64,129.63,0.2]
[1763985688157,23.29702347,129.64,129.63,0.2]
[1763985689152,22.57702347,129.64,129.63,0.2]